[Event "*** Titled Tuesday Blitz"]
[Site "Chess.com"]
[Date "2019.07.02"]
[Round "5"]
[White "DenisQ"]
[Black "David_Paravyan"]
[Result "1/2-1/2"]
[WhiteElo "2631"]
[BlackElo "2852"]
[TimeControl "180+2"]
[EndTime "14:13:03 PDT"]
[Termination "Game drawn by repetition"]

1. Nf3 {[%clk 0:03:01.9]} 1... Nf6 {[%clk 0:02:59.6]} 2. c4 {[%clk 0:03:00.5]}
2... g6 {[%clk 0:03:00.8]} 3. g3 {[%clk 0:03:01.3]} 3... Bg7 {[%clk 0:03:01.7]}
4. Bg2 {[%clk 0:03:03]} 4... O-O {[%clk 0:03:03.2]} 5. O-O {[%clk 0:03:04.1]}
5... c5 {[%clk 0:03:00.5]} 6. Nc3 {[%clk 0:03:04.9]} 6... d5 {[%clk 0:03:01.2]}
7. cxd5 {[%clk 0:03:03.7]} 7... Nxd5 {[%clk 0:03:03.1]} 8. Nxd5 {[%clk
0:03:02.3]} 8... Qxd5 {[%clk 0:03:05]} 9. d4 {[%clk 0:03:03.4]} 9... cxd4 {[%clk
0:03:03.7]} 10. Be3 {[%clk 0:03:04.5]} 10... Rd8 {[%clk 0:02:59.2]} 11. Nxd4
{[%clk 0:03:02.8]} 11... Qh5 {[%clk 0:02:58.1]} 12. Qc2 {[%clk 0:03:03]} 12...
Bxd4 {[%clk 0:02:45]} 13. Bxd4 {[%clk 0:03:02.5]} 13... Nc6 {[%clk 0:02:46.7]}
14. Bxc6 {[%clk 0:02:47.7]} 14... bxc6 {[%clk 0:02:46.2]} 15. Rfd1 {[%clk
0:02:47.7]} 15... Bf5 {[%clk 0:02:44.4]} 16. Qc4 {[%clk 0:02:45.3]} 16... Rd5
{[%clk 0:02:27.7]} 17. Bc3 {[%clk 0:02:30.2]} 17... Rc8 {[%clk 0:01:35]} 18. f3
{[%clk 0:02:23.5]} 18... Be6 {[%clk 0:01:30.5]} 19. Rxd5 {[%clk 0:02:19.9]}
19... Qxd5 {[%clk 0:01:25]} 20. Qxd5 {[%clk 0:02:19.2]} 20... cxd5 {[%clk
0:01:22.4]} 21. Rc1 {[%clk 0:02:03.9]} 21... d4 {[%clk 0:01:18.3]} 22. Bd2
{[%clk 0:02:04.5]} 22... Rxc1+ {[%clk 0:01:19.7]} 23. Bxc1 {[%clk 0:02:06.4]}
23... Bxa2 {[%clk 0:01:20.9]} 24. Bf4 {[%clk 0:02:07.4]} 24... f6 {[%clk
0:01:17.6]} 25. Bb8 {[%clk 0:02:07.3]} 25... a6 {[%clk 0:01:19.1]} 26. f4 {[%clk
0:02:07.3]} 26... Kf7 {[%clk 0:01:17.4]} 27. Kf2 {[%clk 0:02:05.4]} 27... Ke6
{[%clk 0:01:17.5]} 28. Ke1 {[%clk 0:01:49.1]} 28... Kd5 {[%clk 0:01:18]} 29. Kd2
{[%clk 0:01:49.9]} 29... Ke4 {[%clk 0:01:16.9]} 30. Ba7 {[%clk 0:01:49.6]} 30...
Bc4 {[%clk 0:01:15.8]} 31. Bc5 {[%clk 0:01:50]} 31... e5 {[%clk 0:01:15]} 32.
fxe5 {[%clk 0:01:50.6]} 32... fxe5 {[%clk 0:01:16]} 33. Bd6 {[%clk 0:01:51.5]}
33... a5 {[%clk 0:01:06.6]} 34. h4 {[%clk 0:01:50.6]} 34... a4 {[%clk
0:01:05.8]} 35. Bb8 {[%clk 0:01:50.3]} 35... Be6 {[%clk 0:01:04.8]} 36. Bc7
{[%clk 0:01:51]} 36... Kd5 {[%clk 0:00:56.7]} 37. Bb8 {[%clk 0:01:52]} 37... Ke4
{[%clk 0:00:55.7]} 38. Bc7 {[%clk 0:01:52.8]} 38... Bf5 {[%clk 0:00:57.2]} 39.
Bb8 {[%clk 0:01:53.8]} 39... h6 {[%clk 0:00:58.3]} 40. Bc7 {[%clk 0:01:54.2]}
40... Kd5 {[%clk 0:00:55.3]} 41. Bb8 {[%clk 0:01:54.7]} 41... e4 {[%clk
0:00:50.2]} 42. e3 {[%clk 0:01:54.8]} 42... d3 {[%clk 0:00:51.8]} 43. Bf4 {[%clk
0:01:54.7]} 43... h5 {[%clk 0:00:48.4]} 44. Kc3 {[%clk 0:01:52.7]} 44... Bd7
{[%clk 0:00:49.8]} 45. Bb8 {[%clk 0:01:50.8]} 45... Ke6 {[%clk 0:00:51]} 46. Bc7
{[%clk 0:01:50.6]} 46... Kf5 {[%clk 0:00:52.3]} 47. Kd2 {[%clk 0:01:51.2]} 47...
Kg4 {[%clk 0:00:53.7]} 48. Bb8 {[%clk 0:01:51.8]} 48... Kf3 {[%clk 0:00:54.8]}
49. Bc7 {[%clk 0:01:52.8]} 49... Kf2 {[%clk 0:00:56.3]} 50. Bb8 {[%clk
0:01:53.7]} 50... Kg2 {[%clk 0:00:57.9]} 51. Bc7 {[%clk 0:01:54.7]} 51... Kh3
{[%clk 0:00:59.5]} 52. Bb8 {[%clk 0:01:55.8]} 52... Kg4 {[%clk 0:01:01.4]} 53.
Bc7 {[%clk 0:01:56.8]} 53... Kf5 {[%clk 0:01:03.3]} 54. Bb8 {[%clk 0:01:57.7]}
54... Ke6 {[%clk 0:01:05.2]} 55. Bc7 {[%clk 0:01:58.2]} 55... Kd5 {[%clk
0:01:07.1]} 56. Kc3 {[%clk 0:01:59]} 56... Kc6 {[%clk 0:01:09]} 57. Bf4 {[%clk
0:01:59.6]} 57... Kc5 {[%clk 0:01:10.3]} 58. Bg5 {[%clk 0:02:00.6]} 58... Kd5
{[%clk 0:01:11.6]} 59. Bf4 {[%clk 0:02:00.1]} 59... Ke6 {[%clk 0:01:13]} 60. Bb8
{[%clk 0:01:58.9]} 60... Bc6 {[%clk 0:01:14.9]} 61. Bc7 {[%clk 0:01:59.2]} 61...
Kf5 {[%clk 0:01:16.8]} 62. Bb8 {[%clk 0:01:59.5]} 62... g5 {[%clk 0:01:18]} 63.
hxg5 {[%clk 0:01:59.5]} 63... Kxg5 {[%clk 0:01:19.9]} 64. Bf4+ {[%clk
0:01:59.4]} 64... Kg4 {[%clk 0:01:21.2]} 65. Bb8 {[%clk 0:01:58.3]} 65... Bd7
{[%clk 0:01:22.8]} 66. Kd2 {[%clk 0:01:59.1]} 66... Kf5 {[%clk 0:01:24]} 67. Bc7
{[%clk 0:01:59.8]} 67... Ke6 {[%clk 0:01:25.4]} 68. Bb8 {[%clk 0:02:00.9]} 68...
Kd5 {[%clk 0:01:26.7]} 69. Bc7 {[%clk 0:02:01.9]} 69... Kc4 {[%clk 0:01:28.4]}
70. Bb8 {[%clk 0:02:02]} 70... Kd5 {[%clk 0:01:28.9]} 71. Kc3 {[%clk 0:02:01.6]}
71... Bg4 {[%clk 0:01:29.8]} 72. Bf4 {[%clk 0:02:01.7]} 72... Bf3 {[%clk
0:01:31.2]} 73. Bg5 {[%clk 0:02:01.8]} 73... Kd6 {[%clk 0:01:32.4]} 74. Bf4+
{[%clk 0:02:02.6]} 74... Kc5 {[%clk 0:01:33.7]} 75. Bg5 {[%clk 0:02:03.5]} 75...
Bg4 {[%clk 0:01:35.2]} 76. Bf4 {[%clk 0:02:04.2]} 76... Kd5 {[%clk 0:01:36.7]}
77. Bb8 {[%clk 0:02:04.1]} 77... Bd7 {[%clk 0:01:38]} 78. Bf4 {[%clk 0:02:04.7]}
78... Ke6 {[%clk 0:01:39.6]} 79. Bb8 {[%clk 0:02:04.6]} 79... Kf5 {[%clk
0:01:41.1]} 80. Kd2 {[%clk 0:02:05.1]} 80... Kg4 {[%clk 0:01:42.3]} 81. Bc7
{[%clk 0:02:05.4]} 81... Kf3 {[%clk 0:01:43.4]} 82. Bb8 {[%clk 0:02:06.1]} 82...
Be6 {[%clk 0:01:45]} 83. Bc7 {[%clk 0:02:06.9]} 83... Bh3 {[%clk 0:01:46.7]} 84.
Bb8 {[%clk 0:02:07.6]} 84... Bf1 {[%clk 0:01:48.3]} 85. Bc7 {[%clk 0:02:08.4]}
85... Kg4 {[%clk 0:01:49.9]} 86. Bb8 {[%clk 0:02:09.2]} 86... Kh3 {[%clk
0:01:51.5]} 87. Bc7 {[%clk 0:02:10.2]} 87... Be2 {[%clk 0:01:53.1]} 88. Bb8
{[%clk 0:02:11.1]} 88... Bg4 {[%clk 0:01:54.8]} 89. Bc7 {[%clk 0:02:12]} 89...
Be6 {[%clk 0:01:56.3]} 90. Bb8 {[%clk 0:02:12.9]} 90... Bb3 {[%clk 0:01:58]} 91.
Bc7 {[%clk 0:02:13.8]} 91... Bd5 {[%clk 0:01:59.7]} 92. Bb8 {[%clk 0:02:14.7]}
92... Bc6 {[%clk 0:02:01.4]} 93. Bc7 {[%clk 0:02:15.6]} 93... Bd7 {[%clk
0:02:03.1]} 94. Bb8 {[%clk 0:02:16.4]} 94... Bc8 {[%clk 0:02:04.7]} 95. Bc7
{[%clk 0:02:17]} 95... Bb7 {[%clk 0:02:06.4]} 96. Bb8 {[%clk 0:02:17.6]} 96...
Ba8 {[%clk 0:02:08]} 97. Bc7 {[%clk 0:02:18.6]} 97... Bc6 {[%clk 0:02:09.6]} 98.
Bb8 {[%clk 0:02:19.3]} 98... Bd5 {[%clk 0:02:11.2]} 99. Bc7 {[%clk 0:02:20.2]}
99... Bf7 {[%clk 0:02:12.8]} 100. Bb8 {[%clk 0:02:21]} 100... Be8 {[%clk
0:02:14.4]} 101. Bc7 {[%clk 0:02:20.2]} 101... Bg6 {[%clk 0:02:15.7]} 102. Bb8
{[%clk 0:02:19.2]} 102... Bf7 {[%clk 0:02:17]} 103. Bc7 {[%clk 0:02:20.1]}
103... Kg2 {[%clk 0:02:18.4]} 104. Bb8 {[%clk 0:02:20.7]} 104... Kf3 {[%clk
0:02:20]} 105. Bc7 {[%clk 0:02:21.4]} 105... Kg4 {[%clk 0:02:21.6]} 106. Bb8
{[%clk 0:02:22.3]} 106... Bd5 {[%clk 0:02:23.2]} 107. Bc7 {[%clk 0:02:23.2]}
107... Bc6 {[%clk 0:02:24.8]} 108. Bb8 {[%clk 0:02:23.9]} 108... Bd7 {[%clk
0:02:24.7]} 109. Bc7 {[%clk 0:02:15.1]} 109... Bc8 {[%clk 0:02:25.5]} 110. Bb8
{[%clk 0:02:15.8]} 110... Ba6 {[%clk 0:02:27]} 111. Bc7 {[%clk 0:02:16.4]}
111... Bb7 {[%clk 0:02:28.3]} 112. Bb8 {[%clk 0:02:17.1]} 112... h4 {[%clk
0:02:30.2]} 113. gxh4 {[%clk 0:02:17.1]} 113... Kxh4 {[%clk 0:02:32.1]} 114. Bc7
{[%clk 0:02:16.5]} 114... Kg4 {[%clk 0:02:33.6]} 115. Bd6 {[%clk 0:02:17.5]}
115... Kf5 {[%clk 0:02:35.5]} 116. Ba3 {[%clk 0:02:18.2]} 116... Ke6 {[%clk
0:02:37.4]} 117. Ke1 {[%clk 0:02:19.1]} 117... Kd5 {[%clk 0:02:39.3]} 118. Kd2
{[%clk 0:02:20.6]} 118... Kc4 {[%clk 0:02:41.2]} 119. Be7 {[%clk 0:02:20.4]}
119... Kb3 {[%clk 0:02:41.9]} 120. Ba3 {[%clk 0:02:21.1]} 120... Bc8 {[%clk
0:02:19.7]} 121. Kc1 {[%clk 0:02:23]} 121... Ka2 {[%clk 0:01:20.5]} 122. Bd6
{[%clk 0:02:03.7]} 122... d2+ {[%clk 0:01:18.7]} 123. Kxd2 {[%clk 0:02:04.1]}
123... Kxb2 {[%clk 0:01:19.6]} 124. Be5+ {[%clk 0:02:05.1]} 124... Kb1 {[%clk
0:01:17.1]} 125. Bd6 {[%clk 0:02:05.6]} 125... Kb2 {[%clk 0:01:16.5]} 126. Be5+
{[%clk 0:02:06.3]} 126... Kb3 {[%clk 0:01:16.8]} 127. Kc1 {[%clk 0:02:06.8]}
127... Ba6 {[%clk 0:01:10.6]} 128. Kb1 {[%clk 0:02:07.4]} 128... Bd3+ {[%clk
0:01:10]} 129. Ka1 {[%clk 0:02:08.3]} 129... Bc4 {[%clk 0:01:10.4]} 130. Bf4
{[%clk 0:02:10.2]} 130... a3 {[%clk 0:01:11.3]} 131. Bg5 {[%clk 0:02:12.1]}
131... a2 {[%clk 0:01:12.6]} 132. Bh6 {[%clk 0:02:14]} 132... Kc3 {[%clk
0:01:13.9]} 133. Bg5 {[%clk 0:02:14.8]} 133... Kd3 {[%clk 0:01:15.4]} 134. Bf4
{[%clk 0:02:16]} 134... Kc2 {[%clk 0:01:16.7]} 135. Bg5 {[%clk 0:02:16.9]}
135... Kd3 {[%clk 0:01:14.1]} 136. Bf4 {[%clk 0:02:15.6]} 136... Kc2 {[%clk
0:01:16]} 137. Bh6 {[%clk 0:02:16.2]} 137... Bd5 {[%clk 0:01:17.3]} 138. Bg5
{[%clk 0:02:16.8]} 138... Be6 {[%clk 0:01:19.2]} 139. Bf4 {[%clk 0:02:17.4]}
139... Kb3 {[%clk 0:01:21.1]} 140. Bg5 {[%clk 0:02:18]} 140... Bg4 {[%clk
0:01:23]} 141. Bh6 {[%clk 0:02:18.7]} 141... Be2 {[%clk 0:01:24.9]} 142. Bf4
{[%clk 0:02:19.4]} 142... Kc2 {[%clk 0:01:26.7]} 143. Kxa2 {[%clk 0:02:19.7]}
143... Bf3 {[%clk 0:01:26.6]} 144. Ka3 {[%clk 0:02:20.8]} 144... Kd3 {[%clk
0:01:28.5]} 145. Kb4 {[%clk 0:02:21.5]} 145... Ke2 {[%clk 0:01:29.8]} 146. Kc5
{[%clk 0:02:22.7]} 146... Kf2 {[%clk 0:01:31.4]} 147. Kd4 {[%clk 0:02:22.7]}
147... Kg2 {[%clk 0:01:33.3]} 148. Ke5 {[%clk 0:02:23.4]} 148... Kf1 {[%clk
0:01:35.2]} 149. Kd4 {[%clk 0:02:25.3]} 149... Kg2 {[%clk 0:01:37.1]} 150. Ke5
{[%clk 0:02:26.9]} 150... Kf1 {[%clk 0:01:37.7]} 151. Kd4 {[%clk 0:02:28.8]}
151... Kg2 {[%clk 0:01:38.4]} 1/2-1/2

[Event "*** Titled Tuesday Blitz"]
[Site "Chess.com"]
[Date "2019.07.02"]
[Round "6"]
[White "deBaller"]
[Black "PNEPaul"]
[Result "1-0"]
[WhiteElo "2364"]
[BlackElo "1828"]
[TimeControl "180+2"]
[EndTime "14:15:38 PDT"]
[Termination "deBaller won by resignation"]

1. e4 {[%clk 0:03:01.9]} 1... e5 {[%clk 0:02:57.2]} 2. Nf3 {[%clk 0:03:02.5]}
2... Nc6 {[%clk 0:02:55.6]} 3. d4 {[%clk 0:03:03.1]} 3... exd4 {[%clk
0:02:55.7]} 4. Bc4 {[%clk 0:03:03.5]} 4... Be7 {[%clk 0:02:56.1]} 5. Nxd4 {[%clk
0:03:02.6]} 5... d6 {[%clk 0:02:57.2]} 6. O-O {[%clk 0:03:02.5]} 6... Nf6 {[%clk
0:02:57.9]} 7. Nc3 {[%clk 0:03:03.8]} 7... O-O {[%clk 0:02:58.7]} 8. h3 {[%clk
0:03:04.6]} 8... h6 {[%clk 0:02:58.7]} 9. a4 {[%clk 0:03:05.1]} 9... Nxe4 {[%clk
0:02:50.8]} 10. Nxe4 {[%clk 0:02:52]} 10... d5 {[%clk 0:02:51.4]} 11. Nxc6
{[%clk 0:02:53.1]} 11... bxc6 {[%clk 0:02:52.3]} 12. Bd3 {[%clk 0:02:54.4]}
12... dxe4 {[%clk 0:02:53.1]} 13. Bxe4 {[%clk 0:02:56.3]} 13... Ba6 {[%clk
0:02:54.1]} 14. Qxd8 {[%clk 0:02:38]} 1-0

[Event "*** Titled Tuesday Blitz"]
[Site "Chess.com"]
[Date "2019.07.02"]
[Round "6"]
[White "CarrotsandPizza"]
[Black "VeraNebolsina"]
[Result "0-1"]
[WhiteElo "2264"]
[BlackElo "2382"]
[TimeControl "180+2"]
[EndTime "14:16:26 PDT"]
[Termination "VeraNebolsina won by checkmate"]

1. e4 {[%clk 0:03:01.9]} 1... g6 {[%clk 0:02:59.7]} 2. d4 {[%clk 0:03:02.8]}
2... Bg7 {[%clk 0:03:00.2]} 3. Nc3 {[%clk 0:03:04.4]} 3... d6 {[%clk 0:03:01.3]}
4. f4 {[%clk 0:03:04.8]} 4... Nf6 {[%clk 0:02:56.5]} 5. Bc4 {[%clk 0:03:05]}
5... Nxe4 {[%clk 0:02:48.1]} 6. Bxf7+ {[%clk 0:03:05.8]} 6... Kxf7 {[%clk
0:02:47.9]} 7. Nxe4 {[%clk 0:03:07.7]} 7... h6 {[%clk 0:02:47.8]} 8. Nf3 {[%clk
0:03:07.1]} 8... Rf8 {[%clk 0:02:47.6]} 9. Be3 {[%clk 0:03:06.2]} 9... Kg8
{[%clk 0:02:42.2]} 10. Qd2 {[%clk 0:03:04.9]} 10... Bf5 {[%clk 0:02:07.6]} 11.
Nf2 {[%clk 0:03:05.2]} 11... c5 {[%clk 0:02:06.2]} 12. O-O-O {[%clk 0:02:59.8]}
12... c4 {[%clk 0:02:05]} 13. d5 {[%clk 0:02:47]} 13... c3 {[%clk 0:02:04.5]}
14. bxc3 {[%clk 0:02:46]} 14... Qa5 {[%clk 0:02:04]} 15. Bd4 {[%clk 0:02:45.2]}
15... Qxa2 {[%clk 0:02:02.7]} 16. Qe3 {[%clk 0:02:43.4]} 16... Qxc2# {[%clk
0:02:02.1]} 0-1

[Event "*** Titled Tuesday Blitz"]
[Site "Chess.com"]
[Date "2019.07.02"]
[Round "6"]
[White "WeAintSurePal"]
[Black "Gattass"]
[Result "0-1"]
[WhiteElo "2307"]
[BlackElo "2297"]
[TimeControl "180+2"]
[EndTime "14:17:37 PDT"]
[Termination "Gattass won by resignation"]

1. Nf3 {[%clk 0:03:00.9]} 1... d5 {[%clk 0:02:59]} 2. b3 {[%clk 0:03:01.6]} 2...
c5 {[%clk 0:02:58.8]} 3. Bb2 {[%clk 0:03:02.7]} 3... Nc6 {[%clk 0:02:59.5]} 4.
e3 {[%clk 0:03:03.8]} 4... Nf6 {[%clk 0:02:53.9]} 5. Bb5 {[%clk 0:03:04.7]} 5...
Bd7 {[%clk 0:02:51.1]} 6. O-O {[%clk 0:03:05.7]} 6... a6 {[%clk 0:02:48.1]} 7.
Bxc6 {[%clk 0:03:04]} 7... Bxc6 {[%clk 0:02:50]} 8. Ne5 {[%clk 0:03:05.5]} 8...
Rc8 {[%clk 0:02:50.1]} 9. f4 {[%clk 0:03:06.8]} 9... e6 {[%clk 0:02:49.1]} 10.
d3 {[%clk 0:03:06.3]} 10... Be7 {[%clk 0:02:47.1]} 11. Nd2 {[%clk 0:03:07.7]}
11... O-O {[%clk 0:02:45.9]} 12. Qe1 {[%clk 0:03:09.2]} 12... Be8 {[%clk
0:02:46.6]} 13. Ndf3 {[%clk 0:03:09.6]} 13... Nd7 {[%clk 0:02:44.6]} 14. Qg3
{[%clk 0:03:08.1]} 14... f6 {[%clk 0:02:43.6]} 15. Nxd7 {[%clk 0:03:08]} 15...
Qxd7 {[%clk 0:02:45.3]} 16. e4 {[%clk 0:03:07.8]} 16... c4 {[%clk 0:02:40.7]}
17. dxc4 {[%clk 0:02:59.5]} 17... dxc4 {[%clk 0:02:37.7]} 18. Rad1 {[%clk
0:02:59.6]} 18... Qc6 {[%clk 0:02:33.1]} 19. Nd4 {[%clk 0:02:55.9]} 19... Bc5
{[%clk 0:02:30.6]} 20. Kh1 {[%clk 0:02:52.9]} 20... Bxd4 {[%clk 0:02:28]} 21.
Rxd4 {[%clk 0:02:54.2]} 21... cxb3 {[%clk 0:02:23.1]} 22. cxb3 {[%clk
0:02:54.9]} 22... Qc2 {[%clk 0:02:20.1]} 23. Ba1 {[%clk 0:02:39.5]} 23... Bg6
{[%clk 0:01:56.6]} 24. f5 {[%clk 0:02:37.6]} 24... exf5 {[%clk 0:01:55]} 25.
exf5 {[%clk 0:02:38.4]} 25... Bxf5 {[%clk 0:01:56.1]} 26. Rd7 {[%clk 0:02:39.5]}
26... Bxd7 {[%clk 0:01:55.3]} 0-1

[Event "*** Titled Tuesday Blitz"]
[Site "Chess.com"]
[Date "2019.07.02"]
[Round "6"]
[White "Ceejay271"]
[Black "Superfelix"]
[Result "1-0"]
[WhiteElo "2275"]
[BlackElo "2343"]
[TimeControl "180+2"]
[EndTime "14:17:39 PDT"]
[Termination "Ceejay271 won by resignation"]

1. d4 {[%clk 0:03:01.9]} 1... Nf6 {[%clk 0:03:00.3]} 2. Nf3 {[%clk 0:03:01.6]}
2... g6 {[%clk 0:03:01.8]} 3. Bg5 {[%clk 0:03:01.9]} 3... Bg7 {[%clk 0:03:03.2]}
4. Nbd2 {[%clk 0:03:02.7]} 4... d5 {[%clk 0:03:04.1]} 5. e3 {[%clk 0:03:03.4]}
5... c6 {[%clk 0:03:03]} 6. Bd3 {[%clk 0:03:01.3]} 6... Bf5 {[%clk 0:03:03.7]}
7. Bxf5 {[%clk 0:02:59.9]} 7... gxf5 {[%clk 0:03:05.6]} 8. c3 {[%clk 0:02:59.7]}
8... Nbd7 {[%clk 0:03:06.6]} 9. Ne5 {[%clk 0:02:54.4]} 9... Nxe5 {[%clk
0:03:06.7]} 10. dxe5 {[%clk 0:02:54.1]} 10... Ne4 {[%clk 0:03:07.4]} 11. Bf4
{[%clk 0:02:27.3]} 11... e6 {[%clk 0:03:06.9]} 12. Nxe4 {[%clk 0:02:17.2]} 12...
fxe4 {[%clk 0:03:05.8]} 13. Qg4 {[%clk 0:02:14.9]} 13... Kf8 {[%clk 0:03:04.9]}
14. h4 {[%clk 0:02:07]} 14... a5 {[%clk 0:02:58.5]} 15. h5 {[%clk 0:02:05.8]}
15... h6 {[%clk 0:02:58.9]} 16. Rh3 {[%clk 0:02:02.1]} 16... Qc7 {[%clk
0:02:49.8]} 17. Qg3 {[%clk 0:01:52.6]} 17... a4 {[%clk 0:02:44.6]} 18. a3 {[%clk
0:01:52.5]} 18... Ra5 {[%clk 0:02:44.8]} 19. Rh4 {[%clk 0:01:50.5]} 19... Rb5
{[%clk 0:02:45.5]} 20. Rg4 {[%clk 0:01:50.8]} 20... Rh7 {[%clk 0:02:46.3]} 21.
Rxg7 {[%clk 0:01:50.9]} 21... Rxg7 {[%clk 0:02:46.5]} 22. Bxh6 {[%clk
0:01:51.8]} 22... Qb6 {[%clk 0:02:30.5]} 23. Qxg7+ {[%clk 0:01:46.6]} 23... Ke7
{[%clk 0:02:31.6]} 24. Bg5+ {[%clk 0:01:46.4]} 24... Kd7 {[%clk 0:02:32.6]} 25.
Qxf7+ {[%clk 0:01:45.5]} 1-0

[Event "*** Titled Tuesday Blitz"]
[Site "Chess.com"]
[Date "2019.07.02"]
[Round "6"]
[White "Warerman"]
[Black "DoHoChess"]
[Result "1/2-1/2"]
[WhiteElo "2448"]
[BlackElo "2557"]
[TimeControl "180+2"]
[EndTime "14:18:08 PDT"]
[Termination "Game drawn by repetition"]

1. d4 {[%clk 0:03:01.9]} 1... Nf6 {[%clk 0:03:01]} 2. c4 {[%clk 0:03:01.6]} 2...
e6 {[%clk 0:02:59]} 3. Nc3 {[%clk 0:03:02]} 3... Bb4 {[%clk 0:02:59.2]} 4. e3
{[%clk 0:03:03.2]} 4... O-O {[%clk 0:02:59.5]} 5. Bd3 {[%clk 0:03:04]} 5... c5
{[%clk 0:03:00]} 6. Nf3 {[%clk 0:03:04.9]} 6... d5 {[%clk 0:03:01.7]} 7. O-O
{[%clk 0:03:05]} 7... cxd4 {[%clk 0:03:02.6]} 8. exd4 {[%clk 0:03:05.3]} 8...
dxc4 {[%clk 0:03:04.5]} 9. Bxc4 {[%clk 0:03:06.3]} 9... b6 {[%clk 0:03:06.4]}
10. Bg5 {[%clk 0:03:01.7]} 10... Bb7 {[%clk 0:03:07.1]} 11. Rc1 {[%clk
0:02:59.7]} 11... Nbd7 {[%clk 0:02:58.1]} 12. Re1 {[%clk 0:02:32.9]} 12... Rc8
{[%clk 0:02:58.3]} 13. Bd3 {[%clk 0:02:31.2]} 13... h6 {[%clk 0:02:59.2]} 14.
Bh4 {[%clk 0:02:31.4]} 14... Be7 {[%clk 0:02:54.3]} 15. Bb1 {[%clk 0:02:29.8]}
15... Nd5 {[%clk 0:02:52.3]} 16. Qd3 {[%clk 0:02:28]} 16... g6 {[%clk
0:02:50.3]} 17. Nxd5 {[%clk 0:01:48.3]} 17... Bxh4 {[%clk 0:02:49.9]} 18. Rxc8
{[%clk 0:01:47.4]} 18... Qxc8 {[%clk 0:02:47.9]} 19. Nf4 {[%clk 0:01:36.4]}
19... Bf6 {[%clk 0:02:44.5]} 20. Nxg6 {[%clk 0:01:18.9]} 20... fxg6 {[%clk
0:02:45.6]} 21. Qxg6+ {[%clk 0:01:20.8]} 21... Bg7 {[%clk 0:02:47.5]} 22. Qh7+
{[%clk 0:01:02.3]} 22... Kf7 {[%clk 0:02:47.8]} 23. Qg6+ {[%clk 0:01:01.8]}
23... Kg8 {[%clk 0:02:48.8]} 24. Qh7+ {[%clk 0:00:54.6]} 24... Kf7 {[%clk
0:02:50.1]} 25. Qg6+ {[%clk 0:00:55.8]} 25... Kg8 {[%clk 0:02:51.3]} 1/2-1/2

[Event "*** Titled Tuesday Blitz"]
[Site "Chess.com"]
[Date "2019.07.02"]
[Round "6"]
[White "pandamaster3000"]
[Black "pr1105"]
[Result "1-0"]
[WhiteElo "2280"]
[BlackElo "2200"]
[TimeControl "180+2"]
[EndTime "14:18:26 PDT"]
[Termination "pandamaster3000 won by resignation"]

1. e4 {[%clk 0:03:01.9]} 1... e5 {[%clk 0:03:00.7]} 2. Nf3 {[%clk 0:03:02.6]}
2... Nc6 {[%clk 0:03:01.6]} 3. Bb5 {[%clk 0:03:04.2]} 3... Nf6 {[%clk
0:03:02.3]} 4. d4 {[%clk 0:03:05]} 4... exd4 {[%clk 0:02:39.6]} 5. O-O {[%clk
0:03:05.3]} 5... Nxe4 {[%clk 0:02:31.4]} 6. Re1 {[%clk 0:03:03.1]} 6... d5
{[%clk 0:02:31.7]} 7. Nxd4 {[%clk 0:03:04.1]} 7... Bd7 {[%clk 0:02:30.4]} 8.
Bxc6 {[%clk 0:02:36.8]} 8... bxc6 {[%clk 0:02:32.3]} 9. f3 {[%clk 0:02:38]} 9...
Bd6 {[%clk 0:02:17.6]} 10. fxe4 {[%clk 0:02:37.5]} 10... Qh4 {[%clk 0:02:17.9]}
11. exd5+ {[%clk 0:02:35.4]} 11... Kf8 {[%clk 0:02:12.1]} 12. Nf3 {[%clk
0:02:34.8]} 12... Qh5 {[%clk 0:02:07.7]} 13. Ne5 {[%clk 0:02:08.9]} 13... Bc5+
{[%clk 0:00:51.9]} 14. Kh1 {[%clk 0:02:05.5]} 14... Qf5 {[%clk 0:00:51.4]} 15.
Nxd7+ {[%clk 0:02:02.9]} 15... Qxd7 {[%clk 0:00:53.3]} 16. dxc6 {[%clk
0:01:55.6]} 16... Qxc6 {[%clk 0:00:55.2]} 17. Qf3 {[%clk 0:01:55]} 1-0

[Event "*** Titled Tuesday Blitz"]
[Site "Chess.com"]
[Date "2019.07.02"]
[Round "6"]
[White "SanchezKelvin"]
[Black "pedro_gines"]
[Result "1-0"]
[WhiteElo "2407"]
[BlackElo "2390"]
[TimeControl "180+2"]
[EndTime "14:18:48 PDT"]
[Termination "SanchezKelvin won by resignation"]

1. d4 {[%clk 0:03:01.9]} 1... c5 {[%clk 0:02:59.4]} 2. d5 {[%clk 0:02:57.9]}
2... g6 {[%clk 0:03:00.3]} 3. c4 {[%clk 0:02:56.9]} 3... Bg7 {[%clk 0:03:01.8]}
4. Nf3 {[%clk 0:02:57]} 4... b5 {[%clk 0:03:01.2]} 5. cxb5 {[%clk 0:02:57.6]}
5... a6 {[%clk 0:03:02.2]} 6. bxa6 {[%clk 0:02:58.6]} 6... Bxa6 {[%clk
0:03:04.1]} 7. Nc3 {[%clk 0:02:56.7]} 7... Nf6 {[%clk 0:03:05]} 8. e4 {[%clk
0:02:56.1]} 8... Bxf1 {[%clk 0:03:06]} 9. Kxf1 {[%clk 0:02:57.8]} 9... O-O
{[%clk 0:03:05.9]} 10. e5 {[%clk 0:02:58.3]} 10... Ng4 {[%clk 0:03:06.5]} 11.
Qe2 {[%clk 0:02:57.5]} 11... d6 {[%clk 0:03:05.7]} 12. e6 {[%clk 0:02:58.2]}
12... fxe6 {[%clk 0:03:05]} 13. Qxe6+ {[%clk 0:02:58.4]} 13... Kh8 {[%clk
0:03:05.7]} 14. Qxg4 {[%clk 0:02:59.4]} 14... Na6 {[%clk 0:03:04]} 15. Qe4
{[%clk 0:02:57.5]} 15... Nb4 {[%clk 0:03:04.6]} 16. h4 {[%clk 0:02:50.1]} 16...
h6 {[%clk 0:02:36.1]} 17. Qxg6 {[%clk 0:02:48.7]} 17... Rf6 {[%clk 0:02:36.8]}
18. Qe4 {[%clk 0:02:48.5]} 18... Qb6 {[%clk 0:02:37.1]} 19. Rh3 {[%clk 0:02:23]}
19... Raf8 {[%clk 0:02:22.7]} 20. Rg3 {[%clk 0:02:22.6]} 20... c4 {[%clk
0:02:18.6]} 21. Be3 {[%clk 0:02:17.5]} 21... Qa6 {[%clk 0:02:17.9]} 22. Bd4
{[%clk 0:02:18.4]} 22... Nd3 {[%clk 0:02:16.3]} 23. Qxe7 {[%clk 0:02:09]} 23...
R8f7 {[%clk 0:02:15.6]} 24. Qe8+ {[%clk 0:02:04.8]} 24... Rf8 {[%clk 0:02:01.4]}
25. Qb5 {[%clk 0:02:03.5]} 25... Qa5 {[%clk 0:01:49]} 26. Qxa5 {[%clk
0:01:57.5]} 1-0